Cogmind - Beta 16.1 @@@ ROGUE MODE // 2026.04.06 @ 02:28:21 Player: Klax Result: Destroyed by G-50 Soldier with Heavy Laser Performance ------------- Evolutions (2) 1000 Regions Visited (3) 600 Robots Destroyed (53) 265 Value Destroyed (1279) 1279 Prototype IDs (1) 20 Alien Tech Used (0) 0 Bonus (10) 10 TOTAL SCORE: 3174 Bonus ------- High Alert Combat Kills 10 Cogmind --------- Core Integrity 0/550 Matter 26/300 Energy 99/100 System Corruption 0% Temperature Cool (9) Movement Core (100) Ox1 Location -8/Materials Parts ------- > --- POWER (2) -------- (None) > --- PROPULSION (2) --- (None) > --- UTILITY (5) ------ Trap Scanner Signal Interpreter System Shield > --- WEAPON (2) ------- Enhanced Autogun > --- INVENTORY (5) ---- Rocket Launcher Peak State ------------ > --- POWER ------------ Nuclear Core > --- PROPULSION ------- Armored Treads > --- UTILITY ---------- Small Storage Unit Trap Scanner Visual Processing Unit Signal Interpreter System Shield > --- WEAPON ----------- EM Pulse Cannon Mini Grenade Launcher > --- INVENTORY -------- Light Nuclear Core Improved Hover Unit Cesium-ion Thruster Spread Laser Light Assault Rifle Mini Grenade Launcher Plasma Cutter [Rating: 22] Favorites ----------- Power Light Ion Engine Engine Light Ion Engine Power Core Nuclear Core Propulsion Aluminum Leg Treads Armored Treads Leg Aluminum Leg Hover Unit Improved Hover Unit Flight Unit Cesium-ion Thruster Utility Small Storage Unit Device ECM Suite Storage Small Storage Unit Processor Signal Interpreter Hackware System Shield Weapon Light Assault Rifle Energy Gun EM Pulse Gun Energy Cannon EM Pulse Cannon Ballistic Gun Light Assault Rifle Launcher Mini Grenade Launcher Special Weapon Plasma Cutter Build | -11 -10 -9 -8 ------- Run | Yrd Mat Mat Mat Slots Evolved 4 | . . 2 2 Power 1 | . . 1 . Propulsion . | . . . . Utility 3 | . . 1 2 Weapon . | . . . . Parts Attached 32 | 6 1 10 15 Power 5 | 1 . 2 2 Engine 3 | 1 . 2 . Core 2 | . . . 2 Reactor . | . . . . Propulsion 8 | 2 . 3 3 Treads 2 | . . 1 1 Leg 4 | 2 . 2 . Wheel . | . . . . Hover 1 | . . . 1 Flight 1 | . . . 1 Utility 7 | 1 1 1 4 Device 3 | . 1 . 2 Storage 1 | 1 . . . Processor 2 | . . 1 1 Hackware 1 | . . . 1 Protection . | . . . . Artifact . | . . . . Weapon 12 | 2 . 4 6 Energy Gun 3 | 1 . 1 1 Energy Cannon 1 | . . . 1 Ballistic Gun 5 | 1 . 2 2 Ballistic Cannon . | . . . . Launcher 2 | . . 1 1 Special Weapon 1 | . . . 1 Impact Weapon . | . . . . Slashing Weapon . | . . . . Piercing Weapon . | . . . . Special Melee Weapon . | . . . . Unidentified Prototypes 1 | . . . 1 Parts Lost 25 | . 1 11 13 Power 4 | . . 3 1 Propulsion 6 | . . 3 3 Utility 4 | . . 1 3 Weapon 11 | . 1 4 6 Highest Loss Streak 10 | . 1 5 10 To Critical Strikes . | . . . . Average Backups 3 | 2 2 3 5 Power . | 1 1 . . Propulsion 1 | . . . 1 Utility . | . . . . Weapon 1 | 1 1 1 1 Tool/Special . | . . . . Unused Backups . | . . . . Power . | . . . . Propulsion . | . . . . Utility . | . . . . Weapon . | . . . . Tool/Special . | . . . . Average Slot Usage (%) 74 | . 90 79 64 Engine 7 | . 14 13 . Core 1 | . . . 2 Treads 4 | . . 3 7 Leg 10 | . 28 15 . Device 7 | . 5 7 7 Storage 10 | . 14 11 8 Processor 12 | . . 11 17 Hackware 1 | . . . 4 Energy Gun 4 | . 14 4 2 Energy Cannon 1 | . . . 3 Ballistic Gun 6 | . 14 8 1 Launcher 4 | . . 4 6 Peak Build Rating 22 | 6 7 11 22 Average Rating 11 | 4 6 8 15 On Entrance 4 | . 6 6 5 Avg Prop Armor Cover (%) 12 | . . . 12 Naked Turns . | . . . . Heaviest Build 21 | 11 13 21 21 Greatest Support 20 | 20 20 20 20 Greatest Overweight (x) 3 | 1 . 2 3 Average Overweight (x) . | . . . . Largest Inventory Capacity 8 | 8 8 8 8 Average Capacity 7 | 7 8 8 7 Most Carried 8 | 7 3 5 8 Average Carried 3 | 2 2 3 5 Final Capacity 8 | 8 8 8 5 Final Carried 5 | 2 3 5 1 Class Distribution -------------------- 92% | Mutant 4% | Scavenger-Mutant 3% | Scout Dominant Class ---------------- Mutant | -10/Materials Mutant | -9/Materials Mutant | -8/Materials Resources | -11 -10 -9 -8 ----------- Run | Yrd Mat Mat Mat Matter Collected 490 | 182 95 137 76 Remotely . | . . . . Salvage Created 1222 | . 149 823 250 Parts 75 | . 6 60 9 Haulers Intercepted 1 | . 1 . . Recyclers Shooed 4 | . . 4 . Parts Field Recycled . | . . . . Retrieved Matter . | . . . . Parts Self-Destructed . | . . . . Prevented . | . . . . Parts Restored . | . . . . Kills | -11 -10 -9 -8 ------- Run | Yrd Mat Mat Mat Combat Hostiles Destroyed 34 | . 2 24 8 Guns 15 | . 1 10 4 AOE 19 | . 1 14 4 Classes Destroyed 10 | . 3 6 1 Worker 4 | . . 3 1 Builder 7 | . . 6 1 Hauler 1 | . 1 . . Recycler 3 | . . 3 . Operator 1 | . . 1 . Watcher 3 | . 1 2 . Swarmer 11 | . . 11 . Grunt 18 | . 2 9 7 Duelist 1 | . . . 1 Sentry 4 | . . 4 . Best Kill Streak 18 | . 3 18 4 Combat Bots Only 7 | . 2 7 3 Max Kills in Single Turn 5 | . 2 5 2 Gunslinging 1 | . . . 1 Exploded 4 | . 1 4 2 Melee . | . . . . Uniques/NPCs Destroyed . | . . . . Combat | -11 -10 -9 -8 -------- Run | Yrd Mat Mat Mat Hostile Shots Fired 286 | . 30 136 120 Missed 90 | . 7 49 34 Hits 196 | . 23 87 86 Melee 5 | . . . 5 Projectile 191 | . 23 87 81 Critical Strikes 7 | . . . 7 Damage Taken 2892 | . 227 1028 1637 Core 792 | . 44 187 561 Absorbed by Shields . | . . . . Core Remaining (%) 78 | 100 82 53 . Volleys Fired 84 | . 8 52 24 Largest 2 | . 2 2 2 Hottest 95 | . 60 65 95 Shots Fired 138 | . 16 84 38 Gun 107 | . 16 64 27 Cannon 3 | . . . 3 Launcher 27 | . . 20 7 Special 1 | . . . 1 Kinetic 65 | . 8 42 15 Thermal 13 | . . . 13 Explosive 27 | . . 20 7 Electromagnetic 33 | . 8 22 3 Robot Hit Streak 12 | . 5 12 11 Robot Miss Streak 10 | . 10 4 4 Penetration Max . | . . . . Secondary Targets 4 | . 1 2 1 Max Gunslinging Chain 1 | . 1 1 1 Shots Hit Robots 86 | . 5 53 28 Core Hits 101 | . 7 59 35 Critical Kills . | . . . . Critical Parts Destroyed 1 | . . . 1 Critical Strikes 1 | . . . 1 Destroy 1 | . . . 1 Melee Attacks . | . . . . Impact . | . . . . Slashing . | . . . . Piercing . | . . . . Sneak Attacks . | . . . . Combat Hostiles . | . . . . Follow-up Attacks . | . . . . Damage Inflicted 3380 | . 269 2120 991 Guns 774 | . 62 416 296 Cannons 54 | . . . 54 Explosions 2552 | . 207 1704 641 Melee . | . . . . Ramming . | . . . . Kinetic 365 | . 17 204 144 Thermal 304 | . 110 42 152 Explosive 2303 | . . 1662 641 Electromagnetic 408 | . 142 212 54 Impact . | . . . . Slashing . | . . . . Piercing . | . . . . Highest Corruption . | . . . . Average Corruption . | . . . . Corruption Purged . | . . . . Corruption Blocked . | . . . . Overload Shots . | . . . . Overflow Damage 130 | . 9 99 22 Projectiles . | . . . . Explosions 130 | . 9 99 22 Melee . | . . . . Knockbacks . | . . . . Impact . | . . . . Kinetic . | . . . . Secondary . | . . . . Self-Inflicted Damage 163 | . . 58 105 Shots 6 | . . 2 4 Rammed . | . . . . Targets Rammed . | . . . . Kicked . | . . . . Crushed . | . . . . Highest Temperature 126 | . 62 77 126 Average Temperature 37 | . 26 27 60 Received Heat Transfer 948 | . 96 303 549 Siege Activations . | . . . . Martial Activations . | . . . . Shielding Activations . | . . . . Robots Disrupted . | . . . . Combat Hostiles . | . . . . Robots Corrupted . | . . . . Combat Hostiles . | . . . . Parts Fried . | . . . . Impact Corruptions . | . . . . Robots Melted . | . . . . Combat Hostiles . | . . . . Parts Melted . | . . . . Heat Transferred 395 | . 150 50 195 Parts Sabotaged . | . . . . Parts Stolen . | . . . . Parts Stripped . | . . . . Power Chain Reactions 3 | . 2 1 . Alert | -11 -10 -9 -8 ------- Run | Yrd Mat Mat Mat Maximum Alert Level 2 | . . 2 . Low Security (%) 86 | 100 100 67 100 Level 1 5 | . . 13 . Level 2 7 | . . 18 . Level 3 . | . . . . Level 4 . | . . . . Level 5 . | . . . . High Security . | . . . . Max Security . | . . . . Peak Influence 459 | . 75 459 183 Initial 183 | . . 22 183 Average 109 | . 23 165 93 Influence Increases 1171 | . 115 793 263 Destroy 0b10 Robot/C 680 | . 40 480 160 Destroy 0b10 Robot/NC 95 | . 10 75 10 Destroy Leader 128 | . 4 104 20 Successful Hack 8 | . . 8 . Disable Machine 135 | . 60 45 30 Destroy Structure 125 | . 1 81 43 Influence Decreases 1141 | . 60 413 668 Entered New Map 285 | . . 33 252 Time Decay 606 | . 50 270 286 Lost Part 250 | . 10 110 130 Squads Dispatched 3 | . . 1 2 Investigation . | . . . . Extermination . | . . . . Reinforcement 3 | . . 1 2 Assault . | . . . . Garrison . | . . . . Intercept . | . . . . Searches Triggered . | . . . . Construction Impeded 1 | . . . 1 Haulers Reinforced . | . . . . Active Scanning Responses . | . . . . Cargo Convoy Interrupts . | . . . . Stealth | -11 -10 -9 -8 --------- Run | Yrd Mat Mat Mat Distress Signals 6 | . 2 1 3 Communications Jammed . | . . . . Distress Signals . | . . . . Times Spotted 56 | . 9 26 21 Peak Tracking Total 9 | . 5 7 9 Tactical Retreats 2 | . . 2 . ECM-based Alert Blocks 5 | . . 5 . Traps | -11 -10 -9 -8 ------- Run | Yrd Mat Mat Mat Traps Triggered . | . . . . Indirectly . | . . . . Trap Hack Attempts . | . . . . Triggered . | . . . . Disarmed . | . . . . Reprogrammed . | . . . . Reused . | . . . . Traps Extracted . | . . . . Installed . | . . . . Triggered . | . . . . Machines | -11 -10 -9 -8 ---------- Run | Yrd Mat Mat Mat Machines Disabled 9 | . 4 3 2 Max in Single Turn 3 | . 3 1 1 Machines Repaired . | . . . . Machines Dismantled . | . . . . Machines Sabotaged . | . . . . Overloaded Fab Kills . | . . . . Hacking | -11 -10 -9 -8 --------- Run | Yrd Mat Mat Mat Machines Accessed 3 | . 1 2 . Terminals 2 | . 1 1 . Fabricators . | . . . . Repair Stations . | . . . . Recycling Units 1 | . . 1 . Scanalyzers . | . . . . Garrison Access . | . . . . Total Hacks 5 | . 2 3 . Successful 4 | . 2 2 . Failed 1 | . . 1 . Catastrophic . | . . . . Database Lockouts . | . . . . Manual . | . . . . Terminals 4 | . 2 2 . Fabricators . | . . . . Repair Stations . | . . . . Recycling Units 1 | . . 1 . Scanalyzers . | . . . . Garrison Access . | . . . . Terminal Hacks 3 | . 2 1 . Record 1 | . 1 . . Dispatch Records 1 | . 1 . . Recall Reinforcements 1 | . . 1 . Fabricator Hacks . | . . . . Repair Station Hacks . | . . . . Recycling Unit Hacks 1 | . . 1 . Report Inventory 1 | . . 1 . Scanalyzer . | . . . . Garrison Access Hacks . | . . . . Unauthorized Hacks . | . . . . Terminals . | . . . . Fabricators . | . . . . Repair Stations . | . . . . Recycling Units . | . . . . Scanalyzers . | . . . . Garrison Access . | . . . . Data Cores Recovered . | . . . . Used . | . . . . Hacking Detections 2 | . 1 1 . Full Trace Events . | . . . . Feedback Events . | . . . . Feedback Blocked . | . . . . Robot Schematics Acquired . | . . . . Robots Built . | . . . . Authchips . | . . . . Time . | . . . . Total Robot Build Rating . | . . . . Part Schematics Acquired . | . . . . Parts Built . | . . . . Authchips . | . . . . Time . | . . . . Total Part Build Rating . | . . . . Part Studies Acquired . | . . . . Parts Repaired . | . . . . Time . | . . . . Parts Recycled . | . . . . Recycled Matter . | . . . . Retrieved Matter . | . . . . Retrieved Components . | . . . . Parts Scanalyzed . | . . . . Part Schematics Acquired . | . . . . Parts Damaged . | . . . . Bothacking | -11 -10 -9 -8 ------------ Run | Yrd Mat Mat Mat Used RIF Installer . | . . . . Robots Hacked . | . . . . Non-combat . | . . . . Combat . | . . . . Robot Hacks Applied . | . . . . Relay Couplers Released . | . . . . Fabnet Peak Effective % . | . . . . Robots Rewired . | . . . . Allies Hacked . | . . . . Hacks Repelled . | . . . . Allies | -11 -10 -9 -8 -------- Run | Yrd Mat Mat Mat Total Allies . | . . . . Largest Group . | . . . . Highest-Rated Group . | . . . . Highest-Rated Ally . | . . . . Total Orders . | . . . . Ally Attacks . | . . . . Total Damage . | . . . . Kills . | . . . . Allies Corrupted . | . . . . Allies Melted . | . . . . Intel | -11 -10 -9 -8 ------- Run | Yrd Mat Mat Mat Active Infowar (turns) 1117 | . 88 401 628 Optics 622 | . . . 622 Sensors 47 | . . . 47 Traps 469 | . . . 469 ECM 489 | . 88 401 . Robot Analysis Total . | . . . . Derelict Logs Recovered . | . . . . Drone Launches . | . . . . Drone Recoveries . | . . . . Exploration | -11 -10 -9 -8 ------------- Run | Yrd Mat Mat Mat Turns Passed 1502 | 58 209 607 628 Spaces Moved 844 | 46 154 304 340 Core 20 | 15 . . 5 Treads 357 | . . 95 262 Legs 394 | 31 154 209 . Wheels . | . . . . Hover 7 | . . . 7 Flight 66 | . . . 66 Fastest Speed 35 | 50 120 120 35 Average Speed 145 | 99 120 150 158 Slowest Speed 260 | 120 120 260 250 Overloaded Moves . | . . . . Propulsion Burnouts . | . . . . Robots Hopped . | . . . . Potential Cave-ins . | . . . . Cave-ins Triggered . | . . . . Exploration Rate (%) 25 | 3 26 34 40 Regions Visited 3 Branch Regions . Pre-discovered Areas . | . . . . Known Exits Taken 1 | . . 1 . Unknown Exits Taken 2 | 1 1 . . Scrap Searched . | . . . . Spaces Dug . | . . . . Terrain Destroyed 140 | . 1 94 45 Melee . | . . . . Projectile . | . . . . AOE 140 | . 1 94 45 Terrain Rammed . | . . . . Walls Destroyed . | . . . . Machines Disabled . | . . . . Actions | -11 -10 -9 -8 --------- Run | Yrd Mat Mat Mat Total 993 | 58 164 378 393 Wait . | . . . . Move 841 | 45 153 303 340 Hop . | . . . . Pick Up 32 | 7 2 12 11 Fast Attach 1 | 1 . . . Attach 29 | 5 1 9 14 Detach . | . . . . Swap 2 | . . 1 1 Drop 2 | . . 1 1 Fire 84 | . 8 52 24 Melee . | . . . . Ram . | . . . . Kick . | . . . . Crush . | . . . . Escape Stasis . | . . . . Rewire . | . . . . Trap . | . . . . Miscellaneous 2 | . . . 2 Route ------- -11/Scrapyard -10/Materials -9/Materials -8/Materials History --------- Turn | Location | Event 5 | -11/Scrapyard | Discovered new exit (range 15) 59 | -11/Scrapyard | Entered Materials 252 | -10/Materials | Discovered new exit (range 15) 268 | -10/Materials | Entered another Materials area 268 | -9/Materials | Evolved 2 slots: Power x1, Utility x1 310 | -9/Materials | Build established: Mutant 709 | -9/Materials | Destroyed 7 combat bots 780 | -9/Materials | Lost 5 parts (1p2n1u1w) 854 | -9/Materials | Discovered new exit (range 14) 873 | -9/Materials | Identified exit to Materials 875 | -9/Materials | Entered another Materials area 875 | -8/Materials | Evolved 2 slots: Utility x2 1433 | -8/Materials | Core integrity fell below 50% 1450 | -8/Materials | Core integrity fell below 20% 1503 | -8/Materials | Destroyed by G-50 Soldier with Heavy Laser Last Messages --------------- Penetrated by Slug. Slug penetrates Wall. The unstable cave ceiling collapses. R-06 Scavenger collects Lgt. Ion Engine. Penetrated by Slug. W-25 Informer sends out distress signal. Dismantling Repair Station with Plasma Cutter. Plasma Cutter destroyed. Acquired Prototype Ballistic Gun. Acquired Rocket Launcher. Identified Enh. Autogun. G-47 Trooper suffers critical hit (Destroy). Destroyed Aluminum Leg. Cesium-ion Thruster destroyed. G-47 Trooper destroyed. Imp. Sensor Array destroyed. Imp. Hover Unit destroyed. Visual Processing Unit destroyed. G-47 Trooper destroyed. Map ----- +----------------------------------------------------+ | ????????????????????????????????????????????? | | ????????????????????????????????????????????? | | ????????????????????????????????????????????? | | ????????????????????????????????????????????? | | ????????????????????????????????????????????? | | ????????????????????????????????????????????? | | ????????????????????????????????????????????? | | ????????????????????????????????????????????? | | ????????????????????????????????????????????? | | ????????????????????????????????????????????? | | ????????????????????????????????????????????? | | ????????????????????????????????????????????? | | ????????????????H???????????????????????????? | | ????????????????????????????????????????????? | | ????????????????????????????????????????????? | | ????????????????????????????????????????????? | | ????????????????????????????????????????????? | | ????????????????????????????????????????????? | | ????????????????????????????????????????????? | | ????????????????????????########????????????? | | ????????????????????????# [#????????????? | | ????????????????????????# """ #????????????? | | ????????????????????????# """ [#????????????? | | ????????????????????????# """ #????????????? | | ????????????????????????# =%* #????????????? | | ????????????????????????#@ !%g ########?????? | | ????????????????????#########h## #?????? | | ????????????????+ ^ + """ #?????? | | ??????????????????########### ## """ #?????? | | ?????????????????? ??????## ## """ #?????? | | ?????? ??????????? ??????# # #?????? | | ?????? ?????????? ??????# / #?????? | | ?????? ????????? ??????# ########?????? | | ??????""" ????????#+######### ##????????????? | | ?????"""" ???????# # #?????????????? | | ??" """" ######## # ###?????? ????? | | ? # [ # #""" #??? | | ? # + / ! #??? | | ? # " " """ # #""" #??? | | ? + "R" """ # #?"" #??? | | ?????????###### # """ """ # #??" ???? | | ??????????????# # # #??? ? ????? | | ############### ########### #???????????? | | #???????????? | | #???????????? | | #???????????? | | ###############???????????? | | ####### ##### #?????????????????????????? | | ""#???# #???# #?????????????????????????? | | T"#???# #???# #?????????????????????????? | +----------------------------------------------------+ Best States ------------- Heat Dissipation 31 Energy Generation 17 Energy Capacity 290 Matter Stores 300 Matter Capacity 300 Sight Range 18 Robot Scan Range 15 Terrain Scan Density 10 ECM Strength 1 Evasion (%) 63 Recoil Reduction 1 Defensive Hacking 10 Item Schematics ----------------- None Robot Schematics ------------------ None Fabricated ------------ Nothing Repaired ---------- Nothing Studied --------- None Alien Tech Used ----------------- None Achievements -------------- None Challenges ------------ None Game ------ Seed ProjectileArcAssimilator Manual? 0 Play Time 00:22:29 Cumulative 5.0 hours Start 2026.03.05 @ 05:38:13 End 2026.04.06 @ 02:28:21 Sessions 2 Manual Loads 0 Difficulty Rogue Special Mode None Game No. 10 Rogue 10 Adventurer 0 Explorer 0 Win Type - Total 0 Types 0/0/0/0/0/0/0/0/0/0 Lore% 3 Gallery% 7 Achievement% 6 Wizard Run 0 Options --------- Layout 1 ASCII 0 Keyboard 0 Movement Mouse Keybinds 0 Fullscreen 1 Font 24/Tamsyn Map View 50x35 Zoom Use 0% Tactical HUD 0 Map Filters NONE Filters NONE Steam 1 RUN: d18f1915-c069-4d8e-baf5-a4b560319317